Cogmind - Beta 10.2 @@@ ROGUE MODE // 2021.05.03 @ 21:49:10 Player: Plexion Result: Destroyed by D-53 Grenadier with Mini Grenade Launcher Performance ------------- Evolutions (0) 0 Regions Visited (2) 400 Robots Destroyed (4) 20 Value Destroyed (149) 149 Prototype IDs (0) 0 Alien Tech Used (0) 0 Bonus (0) 0 TOTAL SCORE: 569 Bonus ------- None Cogmind --------- Core Integrity 0/250 Matter 263/300 Energy 38/100 System Corruption 3% Temperature Cool (0) Movement Core (200) Ox3 Location -10/Mines Parts ------- > --- POWER (1) -------- (None) > --- PROPULSION (2) --- (None) > --- UTILITY (2) ------ Small Storage Unit Small Storage Unit > --- WEAPON (2) ------- EMP Blaster > --- INVENTORY (8) ---- EM Pulse Gun Small Laser Assault Rifle EMP Blaster Peak State ------------ > --- POWER ------------ Improved Ion Engine > --- PROPULSION ------- Light Treads Light Treads > --- UTILITY ---------- Small Storage Unit Small Storage Unit > --- WEAPON ----------- Assault Rifle EMP Blaster > --- INVENTORY -------- Improved Ion Engine EM Pulse Gun Small Laser Assault Rifle EMP Blaster EMP Blaster EMP Blaster [Rating: 10] Favorites ----------- Power Improved Ion Engine Engine Improved Ion Engine Propulsion Light Treads Treads Light Treads Utility Small Storage Unit Storage Small Storage Unit Weapon EM Pulse Gun Energy Gun EM Pulse Gun Ballistic Gun Assault Rifle Launcher EMP Blaster Build | -11 -10 -10 ------- Run | Scr Mat Min Slots Evolved . | . . . Power . | . . . Propulsion . | . . . Utility . | . . . Weapon . | . . . Parts Attached 15 | 8 2 5 Power 3 | 1 1 1 Engine 3 | 1 1 1 Core . | . . . Reactor . | . . . Propulsion 2 | 2 . . Treads 2 | 2 . . Leg . | . . . Wheel . | . . . Hover . | . . . Flight . | . . . Utility 2 | 1 1 . Device . | . . . Storage 2 | 1 1 . Processor . | . . . Hackware . | . . . Protection . | . . . Artifact . | . . . Weapon 8 | 4 . 4 Energy Gun 4 | 4 . . Energy Cannon . | . . . Ballistic Gun 1 | . . 1 Ballistic Cannon . | . . . Launcher 3 | . . 3 Special Weapon . | . . . Impact Weapon . | . . . Slashing Weapon . | . . . Piercing Weapon . | . . . Special Melee Weapon . | . . . Unidentified Prototypes . | . . . Parts Lost 8 | . . 8 Power 2 | . . 2 Propulsion 2 | . . 2 Utility . | . . . Weapon 4 | . . 4 Highest Loss Streak 7 | . . 7 Average Slot Usage (%) 95 | . 93 99 Engine 14 | . 14 14 Treads 27 | . 28 27 Storage 24 | . 21 28 Energy Gun 21 | . 28 14 Ballistic Gun 4 | . . 9 Launcher 1 | . . 3 Naked Turns . | . . . Heaviest Build 21 | 11 19 21 Greatest Support 40 | 40 40 40 Greatest Overweight (x) 6 | . . 6 Average Overweight (x) . | . . . Largest Inventory Capacity 8 | 6 8 8 Average Capacity 7 | 5 7 8 Most Carried 8 | 4 8 8 Average Carried 5 | 2 6 7 Final Capacity 8 | 6 8 8 Final Carried 8 | 4 8 4 Class Distribution -------------------- 100% | Mutant Dominant Class ---------------- Mutant | -10/Materials Mutant | -10/Mines Resources | -11 -10 -10 ----------- Run | Scr Mat Min Matter Collected 317 | 258 32 27 Remotely . | . . . Salvage Created 369 | . 83 286 Parts 11 | . 6 5 Haulers Intercepted . | . . . Recyclers Shooed . | . . . Parts Field Recycled . | . . . Retrieved Matter . | . . . Parts Self-Destructed . | . . . Prevented . | . . . Kills | -11 -10 -10 ------- Run | Scr Mat Min Combat Hostiles Destroyed 14 | . 2 12 Guns 4 | . 2 2 AOE 10 | . . 10 Classes Destroyed 2 | . 1 1 Grunt 4 | . 2 2 Assembled 10 | . . 10 Best Kill Streak 10 | . 2 10 Combat Bots Only 10 | . 2 10 Max Kills in Single Turn 4 | . 1 4 Gunslinging . | . . . Exploded 4 | . . 4 Melee . | . . . Uniques/NPCs Destroyed . | . . . Combat | -11 -10 -10 -------- Run | Scr Mat Min Damage Taken 1240 | . 56 1184 Core 270 | . . 270 Absorbed by Shields . | . . . Core Remaining (%) 100 | 100 . . Volleys Fired 20 | . 5 15 Largest 2 | . 2 2 Hottest 90 | . 90 90 Shots Fired 32 | . 10 22 Gun 24 | . 10 14 Cannon . | . . . Launcher 8 | . . 8 Special . | . . . Kinetic 4 | . . 4 Thermal 8 | . 5 3 Explosive . | . . . Electromagnetic 20 | . 5 15 Robot Hit Streak 9 | . 4 9 Robot Miss Streak 1 | . 1 1 Penetration Max . | . . . Secondary Targets 1 | . . 1 Max Gunslinging Chain 1 | . . 1 Shots Hit Robots 21 | . 7 14 Core Hits 33 | . 4 29 Critical Hits . | . . . Critical Kills . | . . . Critical Parts Destroyed . | . . . Melee Attacks . | . . . Impact . | . . . Slashing . | . . . Piercing . | . . . Sneak Attacks . | . . . Combat Hostiles . | . . . Follow-up Attacks . | . . . Damage Inflicted 779 | . 80 699 Guns 242 | . 80 162 Cannons . | . . . Explosions 537 | . . 537 Melee . | . . . Ramming . | . . . Kinetic 40 | . . 40 Thermal 62 | . 37 25 Explosive . | . . . Electromagnetic 677 | . 43 634 Impact . | . . . Slashing . | . . . Piercing . | . . . Highest Corruption 3 | . . 3 Average Corruption 1 | . . 1 Corruption Purged . | . . . Effects 1 | . . 1 Message Errors 1 | . . 1 Overload Shots . | . . . Overflow Damage . | . . . Projectiles . | . . . Explosions . | . . . Melee . | . . . Knockbacks . | . . . Impact . | . . . Kinetic . | . . . Secondary . | . . . Self-Inflicted Damage 22 | . . 22 Shots 2 | . . 2 Rammed . | . . . Targets Rammed . | . . . Kicked . | . . . Crushed . | . . . Highest Temperature 209 | . 172 209 Average Temperature 104 | . 87 115 Received Heat Transfer 227 | . 30 197 Siege Activations . | . . . Robots Corrupted . | . . . Combat Hostiles . | . . . Parts Fried 1 | . . 1 Impact Corruptions . | . . . Robots Melted . | . . . Combat Hostiles . | . . . Parts Melted . | . . . Heat Transferred 185 | . 111 74 Parts Sabotaged . | . . . Parts Stolen . | . . . Parts Stripped . | . . . Power Chain Reactions . | . . . Missiles Intercepted . | . . . Alert | -11 -10 -10 ------- Run | Scr Mat Min Peak Influence 98 | . 98 92 Initial 37 | . . 37 Average 48 | . 58 62 Maximum Alert Level . | . . . Low Security (%) 100 | 100 100 100 Level 1 . | . . . Level 2 . | . . . Level 3 . | . . . Level 4 . | . . . Level 5 . | . . . High Security . | . . . Max Security . | . . . Squads Dispatched 1 | . 1 . Investigation . | . . . Extermination . | . . . Reinforcement 1 | . 1 . Assault . | . . . Garrison . | . . . Intercept . | . . . Construction Impeded . | . . . Haulers Reinforced . | . . . Stealth | -11 -10 -10 --------- Run | Scr Mat Min Distress Signals . | . . . Communications Jammed . | . . . Distress Signals . | . . . Times Spotted 29 | . 7 22 Peak Tracking Total 16 | . 4 16 Tactical Retreats 2 | . . 2 Traps | -11 -10 -10 ------- Run | Scr Mat Min Traps Triggered . | . . . Indirectly . | . . . Trap Hack Attempts . | . . . Triggered . | . . . Disarmed . | . . . Reprogrammed . | . . . Reused . | . . . Traps Extracted . | . . . Installed . | . . . Triggered . | . . . Machines | -11 -10 -10 ---------- Run | Scr Mat Min Machines Disabled . | . . . Max in Single Turn . | . . . Machines Sabotaged . | . . . Garrisons Compromised . | . . . Overloaded Fab Kills . | . . . Fab Network Shutdowns . | . . . Hacking | -11 -10 -10 --------- Run | Scr Mat Min Machines Accessed 1 | . 1 . Terminals 1 | . 1 . Fabricators . | . . . Repair Stations . | . . . Recycling Units . | . . . Scanalyzers . | . . . Garrison Access . | . . . Total Hacks 1 | . 1 . Successful 1 | . 1 . Failed . | . . . Catastrophic . | . . . Database Lockouts . | . . . Manual 1 | . 1 . Terminals 1 | . 1 . Fabricators . | . . . Repair Stations . | . . . Recycling Units . | . . . Scanalyzers . | . . . Garrison Access . | . . . Terminal Hacks . | . . . Fabricator Hacks . | . . . Repair Station Hacks . | . . . Recycling Unit Hacks . | . . . Scanalyzer . | . . . Garrison Access Hacks . | . . . Unauthorized Hacks 1 | . 1 . Terminals 1 | . 1 . Track 1 | . 1 . Fabricators . | . . . Repair Stations . | . . . Recycling Units . | . . . Scanalyzers . | . . . Garrison Access . | . . . Data Cores Recovered . | . . . Used . | . . . Hacking Detections . | . . . Full Trace Events . | . . . Feedback Events . | . . . Feedback Blocked . | . . . Robot Schematics Acquired . | . . . Robots Built . | . . . Matter . | . . . Time . | . . . Total Robot Build Rating . | . . . Part Schematics Acquired . | . . . Parts Built . | . . . Matter . | . . . Time . | . . . Total Part Build Rating . | . . . Parts Repaired . | . . . Time . | . . . Parts Recycled . | . . . Recycled Matter . | . . . Retrieved Matter . | . . . Retrieved Components . | . . . Parts Scanalyzed . | . . . Part Schematics Acquired . | . . . Parts Damaged . | . . . Bothacking | -11 -10 -10 ------------ Run | Scr Mat Min Used RIF Installer . | . . . Robots Hacked . | . . . Non-combat . | . . . Combat . | . . . Robot Hacks Applied . | . . . Relay Couplers Released . | . . . Robots Rewired . | . . . Allies Hacked . | . . . Hacks Repelled . | . . . Allies | -11 -10 -10 -------- Run | Scr Mat Min Total Allies . | . . . Largest Group . | . . . Highest-Rated Group . | . . . Highest-Rated Ally . | . . . Total Orders . | . . . Ally Attacks . | . . . Total Damage . | . . . Kills . | . . . Allies Corrupted . | . . . Allies Melted . | . . . Intel | -11 -10 -10 ------- Run | Scr Mat Min Robot Analysis Total . | . . . Derelict Logs Recovered . | . . . Drone Launches . | . . . Drone Recoveries . | . . . Exploration | -11 -10 -10 ------------- Run | Scr Mat Min Turns Passed 457 | 84 202 171 Spaces Moved 236 | 47 110 79 Core 6 | 5 . 1 Treads 230 | 42 110 78 Legs . | . . . Wheels . | . . . Hover . | . . . Flight . | . . . Fastest Speed 50 | 50 160 160 Average Speed 158 | 148 160 163 Slowest Speed 350 | 160 160 350 Overloaded Moves . | . . . Propulsion Burnouts . | . . . Robots Hopped . | . . . Cave-ins Triggered . | . . . Exploration Rate (%) 20 | 5 25 30 Regions Visited 2 Branch Regions 1 Pre-discovered Areas . | . . . Known Exits Taken . | . . . Unknown Exits Taken 2 | 1 1 . Scrap Searched . | . . . Spaces Dug . | . . . Terrain Destroyed . | . . . Melee . | . . . Projectile . | . . . AOE . | . . . Terrain Rammed . | . . . Walls Destroyed . | . . . Machines Disabled . | . . . Actions | -11 -10 -10 --------- Run | Scr Mat Min Total 283 | 57 127 99 Wait . | . . . Move 234 | 46 109 79 Hop . | . . . Pick Up 10 | 3 7 . Fast Attach 7 | 6 1 . Attach 4 | . . 4 Detach . | . . . Swap 4 | 2 1 1 Drop 4 | . 4 . Fire 20 | . 5 15 Melee . | . . . Ram . | . . . Kick . | . . . Crush . | . . . Escape Stasis . | . . . Rewire . | . . . Trap . | . . . Miscellaneous . | . . . Route ------- -11/Scrapyard -10/Materials (discovered 2 exits: [*Mat] / [*Min]) -10/Mines (discovered 1 exit: [*Mat]) History --------- Turn | Location | Event 32 | -11/Scrapyard | Discovered new exit (range 16) 85 | -11/Scrapyard | Entered Materials 197 | -10/Materials | Discovered new exit (range 9) 232 | -10/Materials | Discovered new exit (range 15) 287 | -10/Materials | Entered Mines 307 | -10/Mines | Discovered new exit (range 10) 308 | -10/Mines | Build established: Mutant 408 | -10/Mines | Assembled infested the area 413 | -10/Mines | Assisted by a Guerilla fighting off Assembled 444 | -10/Mines | Core integrity fell below 50% 454 | -10/Mines | Core integrity fell below 20% 458 | -10/Mines | Destroyed by D-53 Grenadier with Mini Grenade Launcher Last Messages --------------- 00442_ as-64239 destroyed. 00442_ as-73631 destroyed. 00442_ as-86384 destroyed. 00444_ C-30 ARC bursts open, deploying its payload. 00444_ D-53 Grenadier unfolds itself. 00444_ as-23052 destroyed. 00444_ as-45615 destroyed. 00445_ as-21459 destroyed. 00445_ as-07110 destroyed. 00446_ as-88262 destroyed. 00448_ EMP Blaster destroyed. 00449_ The unstable cave ceiling collapses. 00450_ as-84532 destroyed. 00451_ The unstable cave ceiling collapses. 00451_ Lgt. Treads destroyed. 00451_ Assault Rifle destroyed. 00454_ 9Y0KLIQ4SHI42HCG9TU6%:D Map ----- +----------------------------------------------------+ | | | ???????????????????????????????????????? | | ???????????????????????????????????????? | | ???????????????????????????????????????? | | ???????????????????????????????????????? | | ???????????????????????????????????????? | | ???????????????????????????????????????? | | ???????????????????????????????????????? | | ??? ??????????????????????????????????? | | ??? ??????????????????????????????????? | | ??? ??????????????????????????????????? | | ??# ??????????????????????????????????? | | ??# ??????????????????????????????????? | | ??# ??????????????????????????????????? | | ??# ?????????????????##???????????????? | | ??# #??????????????? ;##??????????????? | | ??# #?####?????????? ???????????????? | | ??# ?? #????????? ???????????????? | | ??#% #??# #???????? % #????????????????? | | ??#%%#?## ####????? #????????????????? | | ??# ### ##### %=#????????????????? | | ??# ## # ##???????????????? | | ??#% ## #???????????????? | | ??# ##% #???????????????? | | ??# % #????????????????? | | ??# % @ #?????????????????? | | ??##### #?????????????????? | | ????# d #?????????????????? | | ????# d # ##?????????????????? | | ????# % # ###??????????????????? | | ????# ## # ##????????????????????? | | ???## ## #######?????????????????????? | | ??## #####???????????????????????????? | | ??# #??????????????????????????????? | | ??# #??????????????????????????????? | | ??## #??????????????????????????????? | | ??## ##?????????????????????????????? | | ??# ####??????????????????????????? | | ??# """ ##?????????????????????????? | | ??# """ #?????????????????????????? | | ??# """ #?????????????????????????? | | ??# ## ##?????????????????????????? | | ?## ##?# #??????????????????????????? | | ?# ##??# #??????????????????????????? | | ?# ##???# #??????????????????????????? | | ?# ##????# #?####?????????????????????? | | ?# ####### ### ######????????????##??? | | ?# ## # ## ##??????????# ??? | | ?# #??????????# ??? | | ?# #??????????# #??? | +----------------------------------------------------+ Best States ------------- Heat Dissipation 25 Energy Generation 12 Energy Capacity 265 Matter Stores 300 Matter Capacity 300 Sight Range 16 Terrain Scan Density 10 Evasion (%) 40 Recoil Reduction 2 Item Schematics ----------------- None Robot Schematics ------------------ None Fabricated ------------ Nothing Alien Tech Used ----------------- None Achievements -------------- None Challenges ------------ None Game ------ Seed MatterCannonInjector Manual? 0 Play Time 00:05:57 Cumulative 147.0 hours Start 2021.05.03 @ 21:45:16 End 2021.05.03 @ 21:49:10 Sessions 1 Manual Loads 0 Difficulty Rogue Special Mode None Game No. 184 Rogue 97 Adventurer 87 Explorer 0 Win Type - Total 4 Types 3/0/0/1/0/0/0/0/0 Lore% 60 Gallery% 69 Achievement% 58 Wizard Run 0 Options --------- ASCII 0 Keyboard 1 Movement Numpad Keybinds 0 Fullscreen 1 Font 18/Smallcaps Map View 76x50 Tactical HUD 1 Map Filters NONE Filters NONE Steam 1 RUN: b5864818-bc60-4a6c-a278-4a596d6f26a9